[Event "27th CRO-chT Women 2018"]
[Site "Biograd"]
[Date "2018.09.12"]
[Round "6.11"]
[White "Raguz, Ivanka"]
[Black "Cvitan, Ena"]
[Result "0-1"]
[ECO "D02"]
[WhiteElo "1706"]
[BlackElo "2009"]
[Annotator "NA"]
[PlyCount "70"]
[EventDate "2018.09.08"]
[EventType "team-tourn"]
[EventCountry "CRO"]
[SourceTitle "playchess.com"]
[Source "ChessBase"]
[SourceQuality "1"]
[TimeControl "40/5400+30:1800+30"]

1. d4 {[%emt 0:00:30]} Nf6 {[%emt 0:00:30]} 2. Nf3 {[%emt 0:00:00]} d5 {[%emt 0:00:00]} 3. g3 {[%emt 0:00:00]} c5 {[%emt 0:01:00]} 4. e3 {[%emt 0:02:30]} cxd4 {[%emt 0:00:30]} 5. exd4 {[%emt 0:00:00]} Nc6 {[%emt 0:00:30]} 6. Bg2 {[%emt 0:01:00]} Bf5 {[%emt 0:02:30]} 7. c3 {[%emt 0:00:30]} e6 {[%emt 0:01:30]} 8. O-O {[%emt 0:00:30]} Bd6 {[%emt 0:02:30]} 9. Re1 {[%emt 0:01:30]} O-O {[%emt 0:05:30]} 10. Nbd2 {[%emt 0:00:30]} Qc7 {[%emt 0:01:30]} 11. Nf1 {[%emt 0:02:30]} h6 {[%emt 0:02:30]} 12. Nh4 {[%emt 0:03:30]} Bh7 {[%emt 0:04:30]} 13. f4 {[%emt 0:03:30]} b5 {[%emt 0:02:30]} 14. Ne3 {[%emt 0:03:30]} Ne7 {[%emt 0:13:30]} 15. Rf1 {[%emt 0:00:30]} Rab8 {[%emt 0:09:30]} 16. f5 {[%emt 0:07:30]} b4 {[%emt 0:01:30]} 17. Bd2 {[%emt 0:01:30]} bxc3 {[%emt 0:09:30]} 18. Bxc3 {[%emt 0:02:30]} Kh8 {[%emt 0:08:30]} 19. Rc1 {[%emt 0:08:30]} Qb6 {[%emt 0:03:30]} 20. g4 {[%emt 0:06:30]} e5 {[%emt 0:02:30]} 21. Kh1 {[%emt 0:01:30]} e4 {[%emt 0:01:30]} 22. Rf2 {[%emt 0:03:30]} Rbc8 {[%emt 0:02:30]} 23. Bh3 {[%emt 0:02:30]} Qb8 {[%emt 0:00:30]} 24. Qf1 {[%emt 0:05:30]} Rc6 {[%emt 0:02:30]} 25. a4 {[%emt 0:05:30]} Rfc8 {[%emt 0:00:30]} 26. g5 {[%emt 0:15:30]} hxg5 {[%emt 0:00:30]} 27. Ng6+ {[%emt 0:00:30]} fxg6 {[%emt 0:05:15]} 28. fxg6 {[%emt 0:00:30]} Bf4 {[%emt 0:00:21]} 29. Bxc8 {[%emt 0:05:30]} Qxc8 {[%emt 0:02:59]} 30. Bd2 {[%emt 0:04:18]} Nxg6 {[%emt 0:02:18]} 31. Rxc6 {[%emt 0:02:52]} Qxc6 {[%emt 0:00:04]} 32. Qh3 {[%emt 0:00:34]} Nh4 {[%emt 0:01:01]} 33. Rf1 {[%emt 0:00:42]} Qxa4 {[%emt 0:06:10]} 34. Qc8+ {[%emt 0:02:35]} Bg8 {[%emt 0:01:36]} 35. Qh3 {[%emt 0:01:17]} Qd7 {[%emt 0:00:40]} 0-1

[Event "27th CRO-chT Women 2018"]
[Site "Biograd"]
[Date "2018.09.12"]
[Round "6.12"]
[White "Vujnovic, Patricija"]
[Black "Ivekovic, Zvjezdana"]
[Result "1-0"]
[ECO "D02"]
[WhiteElo "2056"]
[BlackElo "1703"]
[Annotator "NA"]
[PlyCount "77"]
[EventDate "2018.09.08"]
[EventType "team-tourn"]
[EventCountry "CRO"]
[SourceTitle "playchess.com"]
[Source "ChessBase"]
[SourceQuality "1"]
[TimeControl "40/5400+30:1800+30"]

1. d4 {[%emt 0:00:30]} d5 {[%emt 0:00:30]} 2. Bf4 {[%emt 0:00:00]} Nf6 {[%emt 0:00:00]} 3. e3 {[%emt 0:00:00]} Bf5 {[%emt 0:01:00]} 4. c4 {[%emt 0:00:00]} c6 {[%emt 0:00:30]} 5. Nc3 {[%emt 0:00:00]} e6 {[%emt 0:01:30]} 6. Qb3 {[%emt 0:03:30]} Qb6 {[%emt 0:01:30]} 7. c5 {[%emt 0:00:30]} Qxb3 {[%emt 0:03:30]} 8. axb3 {[%emt 0:00:00]} Nbd7 {[%emt 0:00:00]} 9. Nf3 {[%emt 0:02:00]} Be7 {[%emt 0:01:00]} 10. h3 {[%emt 0:01:30]} Ne4 {[%emt 0:04:30]} 11. b4 {[%emt 0:01:30]} f6 {[%emt 0:03:30]} 12. Be2 {[%emt 0:12:30]} g5 {[%emt 0:17:30]} 13. Bh2 {[%emt 0:03:30]} h5 {[%emt 0:01:30]} 14. b5 {[%emt 0:07:30]} Kf7 {[%emt 0:01:30]} 15. bxc6 {[%emt 0:04:30]} bxc6 {[%emt 0:00:00]} 16. Ba6 {[%emt 0:01:30]} g4 {[%emt 0:09:00]} 17. Nh4 {[%emt 0:04:30]} Nexc5 {[%emt 0:02:30]} 18. dxc5 {[%emt 0:02:30]} Nxc5 {[%emt 0:01:30]} 19. Nxf5 {[%emt 0:00:30]} exf5 {[%emt 0:00:30]} 20. h4 {[%emt 0:04:30]} Rhd8 {[%emt 0:00:30]} 21. Ne2 {[%emt 0:07:30]} Kg6 {[%emt 0:12:30]} 22. Nd4 {[%emt 0:04:30]} Nxa6 {[%emt 0:03:30]} 23. Rxa6 {[%emt 0:00:30]} Bb4+ {[%emt 0:06:30]} 24. Ke2 {[%emt 0:00:30]} c5 {[%emt 0:01:30]} 25. Nc6 {[%emt 0:00:30]} Re8 {[%emt 0:02:30]} 26. Rd1 {[%emt 0:02:30]} d4 {[%emt 0:05:07]} 27. Nxb4 {[%emt 0:00:30]} cxb4 {[%emt 0:00:05]} 28. Rxd4 {[%emt 0:00:30]} Rac8 {[%emt 0:01:07]} 29. Rxa7 {[%emt 0:04:30]} Rc2+ {[%emt 0:00:41]} 30. Rd2 {[%emt 0:04:30]} Rc4 {[%emt 0:01:23]} 31. b3 {[%emt 0:03:30]} Rc3 {[%emt 0:02:20]} 32. Rb2 {[%emt 0:02:30]} Rec8 {[%emt 0:00:09]} 33. Rd7 {[%emt 0:00:00]} R8c6 {[%emt 0:03:38]} 34. Rd6 {[%emt 0:02:00]} R6c5 {[%emt 0:00:37]} 35. Bf4 {[%emt 0:00:30]} Rc1 {[%emt 0:01:15]} 36. Rd1 {[%emt 0:03:36]} R1c3 {[%emt 0:01:31]} 37. Bd6 {[%emt 0:00:35]} Rb5 {[%emt 0:01:00]} 38. Rd4 {[%emt 0:00:38]} Rc6 {[%emt 0:00:45]} 39. Rxb4 {[%emt 0:02:33]} 1-0